Cogmind - Beta 14 @@@ ROGUE MODE // 2024.08.31 @ 20:37:41 // Winter2019/RPGLIKE Player: Bulbasornado Result: Destroyed self via exploding Fusion Modulator Performance ------------- Evolutions (4) 2000 Regions Visited (12) 2400 Robots Destroyed (557) 2785 Value Destroyed (21940) 21940 Prototype IDs (61) 1220 Alien Tech Used (0) 0 Bonus (12064) 12064 TOTAL SCORE: 42409 Bonus ------- Triggered High Security 1000 High Alert Combat Kills 12426 Follower Combat Kills 165 Met Data Miner 300 Friendly Fire -1827 Cogmind --------- Core Integrity 0/900 Matter 260/300 Energy 7/150 System Corruption 4% Temperature Cool (12) Movement Flying (29) Location -6/Factory Parts ------- > --- POWER (1) -------- Backup Power VII > --- PROPULSION (3) --- Cooled Cesium-ion Thruster Cooled Cesium-ion Thruster Cooled Cesium-ion Thruster > --- UTILITY (9) ------ Core Analyzer Advanced Particle Charger Improved Reaction Control System Hacking Suite Hacking Suite Hacking Suite Improved Hacking Suite System Shield Improved System Shield > --- WEAPON (4) ------- Lightning Gun Lightning Gun Lightning Gun High-powered Shock Rifle > --- INVENTORY (3) ---- Graphene Brace Experimental Thermal Shield Peak State ------------ > --- POWER ------------ Backup Power VII > --- PROPULSION ------- Cooled Cesium-ion Thruster Cooled Cesium-ion Thruster Cooled Cesium-ion Thruster > --- UTILITY ---------- Core Analyzer Core Analyzer Advanced Particle Charger Improved Weapon Cycler Improved Reaction Control System Graphene Brace Experimental Thermal Shield Hacking Suite System Restoration Module > --- WEAPON ----------- Lightning Gun Lightning Gun Lightning Gun High-powered Shock Rifle > --- INVENTORY -------- Advanced Shield Generator Heavy Plasma Cannon Enhanced Autogun [Rating: 92] Favorites ----------- Power Light Ion Engine Engine Light Ion Engine Power Core Backup Power VII Propulsion Cooled Cesium-ion Thruster Leg Enhanced Flexi-carbon Leg Wheel Wheel Hover Unit Improved Hover Unit Flight Unit Cooled Cesium-ion Thruster Utility Hacking Suite Device Reaction Control System Storage Advanced Energy Well Processor Core Analyzer Hackware Hacking Suite Protection Light Armor Plating Weapon Enhanced Autogun Energy Gun EM Pulse Gun Energy Cannon Beam Cannon Ballistic Gun Enhanced Autogun Ballistic Cannon Advanced Assault Cannon Launcher Rocket Launcher Special Weapon Remote Datajack Impact Weapon Hammer Slashing Weapon Mining Claw Special Melee Weapon Improved Datajack Build | -11 -10 -10 -9 -9 -8 -8 -7 -7 -7 -7 -6 -6 ------- Run | Yrd Mat Min Mat Min Mat Sto Fac Low Low Dat Pro Fac Slots Evolved 13 | 2 2 . 3 1 3 . . . 1 . . 1 Power . | . . . . . . . . . . . . . Propulsion 2 | . . . 1 . 1 . . . . . . . Utility 8 | . 2 . 1 1 2 . . . 1 . . 1 Weapon 3 | 2 . . 1 . . . . . . . . . Parts Attached 253 | 6 32 8 41 4 30 20 68 . 1 11 9 23 Power 17 | 1 3 1 5 . 2 1 4 . . . . . Engine 16 | 1 3 1 4 . 2 1 4 . . . . . Core 1 | . . . 1 . . . . . . . . . Reactor . | . . . . . . . . . . . . . Propulsion 28 | 1 5 1 6 . 5 2 6 . . 2 . . Treads . | . . . . . . . . . . . . . Leg 1 | . . . . . . . . . . 1 . . Wheel 9 | 1 5 1 2 . . . . . . . . . Hover 2 | . . . 1 . . . 1 . . . . . Flight 16 | . . . 3 . 5 2 5 . . 1 . . Utility 108 | 1 6 3 9 1 13 8 42 . 1 5 7 12 Device 64 | 1 2 2 3 . 7 4 30 . 1 2 7 5 Storage 1 | . . . . . . . . . . 1 . . Processor 15 | . 2 . 2 1 3 1 4 . . 2 . . Hackware 18 | . . . . . 1 2 8 . . . . 7 Protection 10 | . 2 1 4 . 2 1 . . . . . . Artifact . | . . . . . . . . . . . . . Weapon 100 | 3 18 3 21 3 10 9 16 . . 4 2 11 Energy Gun 17 | 2 1 . 2 . 1 . 2 . . 1 . 8 Energy Cannon 14 | . 4 . 3 . . 4 1 . . 1 1 . Ballistic Gun 49 | 1 9 2 12 3 6 5 8 . . 2 1 . Ballistic Cannon 1 | . . . . . 1 . . . . . . . Launcher 3 | . . . 2 . . . 1 . . . . . Special Weapon 1 | . . . . . . . . . . . . 1 Impact Weapon 8 | . 4 1 1 . 2 . . . . . . . Slashing Weapon 2 | . . . 1 . . . 1 . . . . . Piercing Weapon . | . . . . . . . . . . . . . Special Melee Weapon 5 | . . . . . . . 3 . . . . 2 Unidentified Prototypes 16 | . . . 2 . . 2 8 . . 4 . . Corrupted Parts 2 | . 1 . . . . . . . . . . 1 System Corruption 4 | . 1 . . . . . . . . . . 3 Parts Lost 3 | . . . 1 . . . 2 . . . . . Power 1 | . . . . . . . 1 . . . . . Propulsion . | . . . . . . . . . . . . . Utility 1 | . . . . . . . 1 . . . . . Weapon 1 | . . . 1 . . . . . . . . . Highest Loss Streak 1 | . . . 1 . . . 1 . . . . . To Critical Strikes . | . . . . . . . . . . . . . Average Slot Usage (%) 99 | . 98 99 99 100 99 100 99 100 100 98 100 99 Engine 7 | . 14 12 9 8 6 6 3 . . . . . Core 1 | . . . . . . . 2 6 6 6 6 5 Wheel 4 | . 14 11 6 . . . . . . . . . Flight 12 | . . . 6 17 20 20 20 20 19 18 18 17 Device 21 | . 4 23 22 26 27 20 24 33 34 26 34 28 Processor 3 | . 2 1 . 3 3 . 5 13 12 21 12 9 Hackware 6 | . . . . . 4 18 15 . . . . 12 Protection 8 | . 14 11 14 8 6 6 . . . . . . Energy Gun 1 | . 3 . . . . . . . . 1 . 16 Energy Cannon 4 | . 11 12 10 2 . . . . . . . . Ballistic Gun 25 | . 28 24 28 32 27 25 25 26 25 23 25 6 Peak Build Rating 92 | 8 8 10 26 29 51 53 76 76 81 87 90 92 Average Rating 35 | 7 6 9 20 27 45 52 64 76 78 78 86 86 On Entrance 45 | . 8 8 10 26 29 51 52 76 76 81 87 87 Naked Turns . | . . . . . . . . . . . . . Heaviest Build 33 | 9 14 17 25 23 30 30 29 28 29 32 32 33 Greatest Support 33 | 10 15 15 25 24 30 30 33 33 33 33 33 33 Greatest Overweight (x) 1 | . 1 1 1 . . . . . . . . . Average Overweight (x) . | . . . . . . . . . . . . . Largest Inventory Capacity 3 | . . . 1 1 1 1 3 3 3 3 3 3 Average Capacity 1 | . . . . 1 1 1 2 3 3 3 3 3 Most Carried 3 | . . . 1 1 1 1 3 3 3 3 3 3 Average Carried 1 | . . . . 1 . . 2 3 3 1 2 2 Final Capacity 3 | . . . 1 1 1 1 3 3 3 3 3 3 Final Carried 3 | . . . 1 1 1 1 3 3 3 3 3 2 Class Distribution -------------------- 22% | Wizard-Sprinter 21% | Hacker-Sprinter 21% | Hacker-Gunner 16% | Gunner 16% | Hacker-Tank Dominant Class ---------------- Hacker-Gunner | -10/Materials Hacker-Gunner | -10/Mines Hacker-Tank | -9/Materials Hacker-Tank | -9/Mines Hacker-Sprinter | -8/Materials Wizard-Sprinter | -8/Storage Wizard-Sprinter | -7/Factory Hacker-Sprinter | -7/Lower Caves Hacker-Sprinter | -7/Lower Caves Hacker-Sprinter | -7/Data Miner Hacker-Sprinter | -6/Proximity Caves Wizard-Sprinter | -6/Factory Resources | -11 -10 -10 -9 -9 -8 -8 -7 -7 -7 -7 -6 -6 ----------- Run | Yrd Mat Min Mat Min Mat Sto Fac Low Low Dat Pro Fac Matter Collected 19671 | 262 996 411 1952 162 3531 3076 6963 256 634 396 492 540 Remotely . | . . . . . . . . . . . . . Salvage Created 25747 | 26 1652 481 2070 107 3538 4203 7967 456 777 154 637 3679 Parts 1529 | 3 102 24 162 4 214 212 456 26 47 43 39 197 Haulers Intercepted 34 | . 2 . 6 . 6 6 8 . . . . 6 Recyclers Shooed 3 | . 1 1 1 . . . . . . . . . Parts Field Recycled . | . . . . . . . . . . . . . Retrieved Matter . | . . . . . . . . . . . . . Parts Self-Destructed 101 | . . . . . . . . 31 31 . 39 . Prevented . | . . . . . . . . . . . . . Kills | -11 -10 -10 -9 -9 -8 -8 -7 -7 -7 -7 -6 -6 ------- Run | Yrd Mat Min Mat Min Mat Sto Fac Low Low Dat Pro Fac Combat Hostiles Destroyed 543 | . 44 23 52 3 83 83 155 13 20 4 15 48 Guns 482 | . 29 16 26 3 83 83 155 13 20 4 15 35 Cannons 48 | . 15 7 26 . . . . . . . . . AOE 5 | . . . . . . . . . . . . 5 Classes Destroyed 23 | 1 8 2 2 . 6 . 2 . 1 . 1 . Worker 12 | . 3 . 2 . . 2 1 . . . . 4 Builder 7 | . 1 . 1 . 1 2 1 . . . . 1 Tunneler 5 | 1 1 . . . . . 1 . . . . 2 Hauler 34 | . 2 . 6 . 6 6 8 . . . . 6 Recycler 3 | . 1 1 1 . . . . . . . . . Mechanic 8 | . . . 2 . . . 5 . . . . 1 Operator 18 | . 1 . 2 . 2 2 7 . . . . 4 Watcher 28 | . 3 . 5 . 5 2 8 . . . . 5 Swarmer 91 | . 15 6 17 3 9 7 10 5 . . 8 11 Cutter 5 | . . . . . 3 . 2 . . . . . Grunt 258 | . 29 5 25 . 52 54 61 5 10 . 3 14 Brawler 14 | . . . . . 1 . 8 2 3 . . . Duelist 12 | . . . . . 2 6 4 . . . . . Protector 19 | . . . . . 3 3 11 . . . . 2 Sentry 49 | . . . 10 . 9 7 16 1 1 . 1 4 Demolisher 9 | . . 2 . . . 7 . . . . . . Specialist 5 | . . . . . . . 2 . . . . 3 Hunter 39 | . . . . . 3 2 24 . . . 2 8 Programmer 19 | . . . . . . . 14 . . . . 5 Heavy 4 | . . . . . 1 . 3 . . . . . Behemoth 2 | . . . . . . . . . . . 1 1 Enhanced Grunt 4 | . . . . . . . . . . 4 . . Assembled 10 | . . 10 . . . . . . . . . . Thug 5 | . . 1 1 2 . . . . 1 . . . Savage 4 | . . . . . . . . . 4 . . . Butcher 1 | . . . . . . . . . 1 . . . Mutant 1 | . . . . . . . . . 1 . . . Best Kill Streak 43 | 1 6 8 8 3 28 15 43 7 9 4 5 11 Combat Bots Only 28 | . 6 8 4 3 28 10 28 7 9 4 5 6 Max Kills in Single Turn 5 | 1 2 1 2 1 2 2 2 2 2 1 2 5 Gunslinging 1 | . . . . . 1 1 1 1 1 . 1 1 Exploded 2 | . . . . . . . . . . . . 2 Melee . | . . . . . . . . . . . . . Uniques/NPCs Destroyed . | . . . . . . . . . . . . . Combat | -11 -10 -10 -9 -9 -8 -8 -7 -7 -7 -7 -6 -6 -------- Run | Yrd Mat Min Mat Min Mat Sto Fac Low Low Dat Pro Fac Hostile Shots Fired 1628 | . 146 47 101 8 204 184 596 11 3 25 36 267 Missed 844 | . 48 10 38 5 110 89 338 7 2 16 23 158 Damage Taken 9732 | . 956 684 686 15 1170 1298 2803 60 15 303 161 1581 Core 7423 | . 650 486 511 11 837 954 2266 49 15 252 133 1259 Absorbed by Shields 2055 | . . . 18 6 436 449 901 22 6 106 56 55 Redirected to Core 5977 | . 535 430 371 11 680 805 1729 32 . 187 96 1101 Ignored by Resistances 123 | . . . . . 18 68 10 . . . 6 21 Core Remaining (%) 95 | 100 . 83 . 100 . 100 . . . . 96 . Volleys Fired 1439 | 2 155 55 173 14 242 191 394 16 39 20 24 114 Largest 4 | 3 3 3 4 4 4 4 4 4 4 4 4 4 Hottest 225 | 110 100 100 174 141 108 100 100 100 100 100 100 225 Shots Fired 5020 | 6 375 157 542 40 843 723 1570 64 156 77 96 371 Gun 4668 | 6 269 103 363 32 843 719 1570 64 156 77 96 370 Cannon 349 | . 106 54 177 8 . 4 . . . . . . Launcher 2 | . . . 2 . . . . . . . . . Special 1 | . . . . . . . . . . . . 1 Kinetic 4331 | 2 223 103 363 32 843 719 1570 64 156 76 96 84 Thermal 352 | 2 106 54 177 8 . 4 . . . 1 . . Explosive 2 | . . . 2 . . . . . . . . . Electromagnetic 334 | 2 46 . . . . . . . . . . 286 Robot Hit Streak 66 | 1 38 16 40 19 34 54 66 23 33 22 55 43 Robot Miss Streak 3 | . 3 2 1 2 3 2 3 2 1 1 2 3 Penetration Max . | . . . . . . . . . . . . . Secondary Targets 146 | . 1 . . . 31 31 55 6 6 2 5 9 Max Gunslinging Chain 2 | . 1 . . . 2 1 2 2 1 1 2 1 Shots Hit Robots 3132 | 1 174 109 185 23 502 449 1111 43 116 69 76 274 Core Hits 1325 | 1 76 49 91 8 189 200 445 23 52 27 31 133 Critical Kills 14 | . . 1 . . 1 4 7 . 1 . . . Critical Parts Destroyed 14 | . 1 . . . 3 6 3 . . . 1 . Critical Strikes 40 | . 1 1 . . 5 11 10 . 1 . 1 10 Destroy 30 | . 1 1 . . 5 11 10 . 1 . 1 . Corrupt 10 | . . . . . . . . . . . . 10 Melee Attacks 28 | . 9 1 2 . 13 . 2 . . . . 1 Impact 24 | . 9 1 1 . 13 . . . . . . . Slashing 1 | . . . 1 . . . . . . . . . Piercing . | . . . . . . . . . . . . . Sneak Attacks 3 | . . . . . . . 2 . . . . 1 Combat Hostiles . | . . . . . . . . . . . . . Follow-up Attacks . | . . . . . . . . . . . . . Damage Inflicted 59327 | 13 2777 1668 3480 489 8963 8126 21033 930 2307 1318 1446 6777 Guns 54118 | 13 1585 840 1800 444 8894 8001 21033 930 2307 1318 1446 5507 Cannons 3427 | . 974 728 1680 45 . . . . . . . . Explosions 1782 | . 218 100 . . 69 125 . . . . . 1270 Melee . | . . . . . . . . . . . . . Ramming . | . . . . . . . . . . . . . Kinetic 49261 | . 1343 840 1800 444 8894 8001 21033 930 2307 1318 1446 905 Thermal 4434 | 13 1018 828 1680 45 69 . . . . . . 781 Explosive 725 | . 111 . . . . 125 . . . . . 489 Electromagnetic 4907 | . 305 . . . . . . . . . . 4602 Impact . | . . . . . . . . . . . . . Slashing . | . . . . . . . . . . . . . Piercing . | . . . . . . . . . . . . . Highest Corruption 4 | . 1 1 3 3 . . 2 . . . . 4 Average Corruption 1 | . 1 1 2 3 . . 1 . . . . 3 Corruption Purged 6 | . . . . . . . 3 . . . . 3 Corruption Blocked . | . . . . . . . . . . . . . Effects 85 | . 15 11 52 2 . . 2 . . . . 3 Message Errors 18 | . 1 1 13 1 . . . . . . . 2 Matter Fused 22 | . 2 2 16 . . . 1 . . . . 1 Heat Flow Errors 8 | . 3 1 4 . . . . . . . . . Energy Discharges 11 | . 5 2 4 . . . . . . . . . Parts Rejected 2 | . . 1 . 1 . . . . . . . . Data Loss (minor) 8 | . . 2 6 . . . . . . . . . Data Loss (major) 4 | . . . 4 . . . . . . . . . Misfires 3 | . 1 . 2 . . . . . . . . . Alerts 3 | . 1 . 2 . . . . . . . . . Weapon Failures 6 | . 2 2 1 . . . 1 . . . . . Overload Shots 1 | . . . . . . . . . . 1 . . Overflow Damage 247 | . 9 . 11 2 29 . . . . . . 196 Projectiles 22 | . 9 . 11 2 . . . . . . . . Explosions 225 | . . . . . 29 . . . . . . 196 Melee . | . . . . . . . . . . . . . Knockbacks . | . . . . . . . . . . . . . Impact . | . . . . . . . . . . . . . Kinetic . | . . . . . . . . . . . . . Secondary . | . . . . . . . . . . . . . Self-Inflicted Damage 118 | . . . . . . . 65 . . . . 53 Shots 2 | . . . . . . . 1 . . . . 1 Rammed . | . . . . . . . . . . . . . Targets Rammed . | . . . . . . . . . . . . . Kicked . | . . . . . . . . . . . . . Crushed . | . . . . . . . . . . . . . Highest Temperature 401 | 48 237 163 356 68 203 401 148 64 61 61 64 111 Average Temperature 46 | 27 40 30 60 27 18 77 44 42 38 41 38 37 Received Heat Transfer 2042 | . 342 106 173 . 438 387 446 12 6 . 15 117 Effects 2 | . 1 . . . . 1 . . . . . . Energy Bleed 1 | . . . . . . 1 . . . . . . Interference 1 | . 1 . . . . . . . . . . . Siege Activations . | . . . . . . . . . . . . . Robots Corrupted 12 | . . . . . . . . . . . . 12 Combat Hostiles 8 | . . . . . . . . . . . . 8 Parts Fried 59 | . . . . . . . . . . . . 59 Impact Corruptions . | . . . . . . . . . . . . . Robots Melted . | . . . . . . . . . . . . . Combat Hostiles . | . . . . . . . . . . . . . Parts Melted 12 | . 2 1 6 . . 2 . . . . . 1 Heat Transferred 7497 | 37 2048 1667 3071 74 50 . . . . . . 550 Parts Sabotaged . | . . . . . . . . . . . . . Parts Stolen . | . . . . . . . . . . . . . Parts Stripped . | . . . . . . . . . . . . . Power Chain Reactions 5 | . 1 . . . . . . . . . . 4 Alert | -11 -10 -10 -9 -9 -8 -8 -7 -7 -7 -7 -6 -6 ------- Run | Yrd Mat Min Mat Min Mat Sto Fac Low Low Dat Pro Fac Peak Influence 4640 | 5 1000 604 1391 724 2723 1857 4640 . . . . 1140 Initial 1115 | . . 379 124 532 282 1115 1100 . . . . 214 Average 951 | . 464 433 679 689 1551 1466 2233 . . . . 506 Maximum Alert Level 5 | . 3 2 4 3 5 5 5 . . . . 4 Low Security (%) 22 | 100 9 . 22 . . . . . . . . 11 Level 1 11 | . 37 26 11 . 3 5 . . . . . 34 Level 2 16 | . 29 73 20 25 8 5 6 . . . . 30 Level 3 16 | . 24 . 17 74 42 8 11 . . . . 22 Level 4 13 | . . . 27 . 2 31 28 . . . . 1 Level 5 8 | . . . . . 42 3 15 . . . . . High Security 10 | . . . . . . 44 35 . . . . . Max Security . | . . . . . . . . . . . . . Sterilizations 4 | . . . 1 . 1 1 1 . . . . . Squads Dispatched 116 | . 12 . 8 . 22 18 42 . . . . 14 Investigation 66 | . 11 . 4 . 14 13 15 . . . . 9 Extermination 4 | . . . . . . . 2 . . . . 2 Reinforcement 13 | . 1 . 1 . 2 . 6 . . . . 3 Assault 31 | . . . 3 . 6 5 17 . . . . . Garrison 2 | . . . . . . . 2 . . . . . Intercept . | . . . . . . . . . . . . . Searches Triggered . | . . . . . . . . . . . . . Construction Impeded . | . . . . . . . . . . . . . Haulers Reinforced 4 | . . . . . . . 1 . . . . 3 Active Scanning Responses . | . . . . . . . . . . . . . Cargo Convoy Interrupts 2 | . . . . . . . 1 . . . . 1 Stealth | -11 -10 -10 -9 -9 -8 -8 -7 -7 -7 -7 -6 -6 --------- Run | Yrd Mat Min Mat Min Mat Sto Fac Low Low Dat Pro Fac Distress Signals 6 | . . . 1 . 1 2 1 . . . . 1 Communications Jammed . | . . . . . . . . . . . . . Distress Signals . | . . . . . . . . . . . . . Times Spotted 703 | . 46 29 65 4 138 95 218 12 20 4 15 57 Peak Tracking Total 24 | . 4 9 5 4 24 17 19 6 7 4 5 12 Tactical Retreats 29 | . 1 3 1 1 8 4 11 . . . . . Traps | -11 -10 -10 -9 -9 -8 -8 -7 -7 -7 -7 -6 -6 ------- Run | Yrd Mat Min Mat Min Mat Sto Fac Low Low Dat Pro Fac Traps Triggered 12 | . 1 2 2 . . 2 5 . . . . . Indirectly . | . . . . . . . . . . . . . Trap Hack Attempts . | . . . . . . . . . . . . . Triggered . | . . . . . . . . . . . . . Disarmed . | . . . . . . . . . . . . . Reprogrammed 18 | . 6 . . . . . 12 . . . . . Reused 6 | . . . . . . . 6 . . . . . Traps Extracted . | . . . . . . . . . . . . . Installed . | . . . . . . . . . . . . . Triggered 9 | . . . . . . . 7 2 . . . . Machines | -11 -10 -10 -9 -9 -8 -8 -7 -7 -7 -7 -6 -6 ---------- Run | Yrd Mat Min Mat Min Mat Sto Fac Low Low Dat Pro Fac Machines Disabled 222 | . 29 4 48 5 45 28 34 1 1 1 . 26 Max in Single Turn 5 | . 1 1 2 1 2 2 5 1 1 1 . 4 Garrison Access 9 | . . . . . 1 . 4 . . . . 4 Machines Repaired . | . . . . . . . . . . . . . Machines Dismantled . | . . . . . . . . . . . . . Machines Sabotaged 5 | . 5 . . . . . . . . . . . Overloaded Fab Kills . | . . . . . . . . . . . . . Hacking | -11 -10 -10 -9 -9 -8 -8 -7 -7 -7 -7 -6 -6 --------- Run | Yrd Mat Min Mat Min Mat Sto Fac Low Low Dat Pro Fac Machines Accessed 123 | . 10 1 16 . 18 17 35 . 1 4 . 21 Terminals 73 | . 7 . 11 . 11 14 19 . . . . 11 Fabricators 6 | . . . . . . . 4 . . . . 2 Repair Stations 10 | . 1 . 1 . 2 1 4 . . . . 1 Recycling Units 15 | . 2 . 2 . 2 2 4 . . . . 3 Scanalyzers 4 | . . . 2 . 2 . . . . . . . Garrison Access 9 | . . . . . 1 . 4 . . . . 4 Total Hacks 630 | . 50 1 92 . 89 86 190 . 1 26 . 95 Successful 464 | . 34 1 66 . 63 60 150 . 1 26 . 63 Failed 164 | . 15 . 26 . 25 26 40 . . . . 32 Catastrophic 27 | . 1 . 4 . 4 4 7 . . . . 7 Database Lockouts 2 | . 1 . . . 1 . . . . . . . Manual 401 | . 39 . 68 . 59 63 110 . . . . 62 Terminals 480 | . 41 . 75 . 72 75 146 . . . . 71 Fabricators 21 | . . . . . . . 15 . . . . 6 Repair Stations 15 | . 1 . 1 . 4 1 7 . . . . 1 Recycling Units 65 | . 8 . 11 . 8 10 16 . . . . 12 Scanalyzers 7 | . . . 5 . 2 . . . . . . . Garrison Access 14 | . . . . . 3 . 6 . . . . 5 Terminal Hacks 251 | . 16 1 36 . 25 31 84 . 1 26 . 31 Record 11 | . . . . . . . . . . 11 . . Part Schematic 27 | . . . . . . . 14 . . 10 . 3 Robot Schematic 2 | . . . . . . . . . . 2 . . Robot Analysis 33 | . 3 . 6 . 2 4 17 . . . . 1 Prototype ID Bank 45 | . 3 . 10 . 8 6 11 . . 3 . 4 Open Door 7 | . . 1 . . . 5 . . 1 . . . Level Access Points 1 | . . . 1 . . . . . . . . . Branch Access Points 2 | . . . 1 . . . 1 . . . . . Emergency Access Points 1 | . . . . . . . 1 . . . . . Machine Index 2 | . . . . . . . 1 . . . . 1 Alert Level 21 | . . . 6 . 3 2 5 . . . . 5 Unreport Threat 46 | . 2 . 6 . 7 10 12 . . . . 9 Locate Traps 36 | . 7 . 6 . 5 3 10 . . . . 5 Reprogram Traps 3 | . 1 . . . . . 2 . . . . . Extermination Status 2 | . . . . . . . 1 . . . . 1 Assault Status 1 | . . . . . . . 1 . . . . . Recall Investigation 1 | . . . . . . . 1 . . . . . Recall Reinforcements 1 | . . . . . . . 1 . . . . . Recall Assault 2 | . . . . . . . 2 . . . . . Hauler Manifests 6 | . . . . . . 1 3 . . . . 2 Zone Layout 1 | . . . . . . . 1 . . . . . Fabricator Hacks 13 | . . . . . . . 9 . . . . 4 Network Status 3 | . . . . . . . 1 . . . . 2 Load Schematic 5 | . . . . . . . 4 . . . . 1 Build 5 | . . . . . . . 4 . . . . 1 Repair Station Hacks 10 | . . . 1 . 2 1 6 . . . . . Refit 10 | . . . 1 . 2 1 6 . . . . . Recycling Unit Hacks 28 | . 2 . 4 . 4 4 9 . . . . 5 Retrieve Matter 11 | . 1 . 2 . 2 2 3 . . . . 1 Retrieve Components 17 | . 1 . 2 . 2 2 6 . . . . 4 Scanalyzer 3 | . . . 3 . . . . . . . . . Insert Component 1 | . . . 1 . . . . . . . . . Analyze 2 | . . . 2 . . . . . . . . . Garrison Access Hacks 2 | . . . . . 1 . 1 . . . . . Unlock Access 1 | . . . . . 1 . . . . . . . Coupler Status 1 | . . . . . . . 1 . . . . . Unauthorized Hacks 157 | . 16 . 22 . 31 24 41 . . . . 23 Terminals 102 | . 13 . 14 . 23 18 23 . . . . 11 Track 4 | . . . 1 . 1 . 2 . . . . . Botnet 66 | . 7 . 11 . 11 9 18 . . . . 10 Disrupt 4 | . . . 1 . 1 . 2 . . . . . Operators 4 | . . . 1 . 1 . 1 . . . . 1 Sabotage 6 | . 6 . . . . . . . . . . . Search 18 | . . . . . 9 9 . . . . . . Fabricators 7 | . . . . . . . 5 . . . . 2 Prioritize 5 | . . . . . . . 4 . . . . 1 Haulers 2 | . . . . . . . 1 . . . . 1 Repair Stations 4 | . 1 . . . 1 . 1 . . . . 1 Mechanics 2 | . . . . . . . 1 . . . . 1 Patch 2 | . 1 . . . 1 . . . . . . . Recycling Units 30 | . 2 . 6 . 4 6 7 . . . . 5 Recyclers 7 | . . . 2 . 1 2 1 . . . . 1 Mask 8 | . . . 2 . 1 2 2 . . . . 1 Tunnel 15 | . 2 . 2 . 2 2 4 . . . . 3 Scanalyzers 4 | . . . 2 . 2 . . . . . . . Extract 4 | . . . 2 . 2 . . . . . . . Garrison Access 10 | . . . . . 1 . 5 . . . . 4 Intercept 1 | . . . . . 1 . . . . . . . Watchers 1 | . . . . . . . 1 . . . . . Jam 8 | . . . . . . . 4 . . . . 4 Data Cores Recovered 16 | . . . 1 . 2 2 7 . . . . 4 Used 9 | . . . 1 . 1 2 3 . . . . 2 Hacking Detections 88 | . 8 . 13 . 12 11 30 . . . . 14 Full Trace Events 10 | . 1 . . . 1 . 6 . . . . 2 Feedback Events . | . . . . . . . . . . . . . Feedback Blocked . | . . . . . . . . . . . . . Robot Schematics Acquired 2 | . . . . . . . . . . 2 . . Robots Built . | . . . . . . . . . . . . . Authchips . | . . . . . . . . . . . . . Time . | . . . . . . . . . . . . . Total Robot Build Rating . | . . . . . . . . . . . . . Part Schematics Acquired 38 | . . . 8 . 3 . 14 . . 10 . 3 Parts Built 8 | . . . . . . . 7 . . . . 1 Authchips . | . . . . . . . . . . . . . Time 163 | . . . . . . . 140 . . . . 23 Total Part Build Rating 40 | . . . . . . . 35 . . . . 5 Parts Repaired . | . . . . . . . . . . . . . Time . | . . . . . . . . . . . . . Parts Recycled . | . . . . . . . . . . . . . Recycled Matter . | . . . . . . . . . . . . . Retrieved Matter 839 | . 13 . 247 . 196 . 383 . . . . . Retrieved Components 91 | . 9 . 20 . 10 6 28 . . . . 18 Parts Scanalyzed 1 | . . . 1 . . . . . . . . . Part Schematics Acquired 1 | . . . 1 . . . . . . . . . Parts Damaged . | . . . . . . . . . . . . . Bothacking | -11 -10 -10 -9 -9 -8 -8 -7 -7 -7 -7 -6 -6 ------------ Run | Yrd Mat Min Mat Min Mat Sto Fac Low Low Dat Pro Fac Used RIF Installer . | . . . . . . . . . . . . . Robots Hacked 2 | . . . . . . . . . . . . 2 Non-combat 2 | . . . . . . . . . . . . 2 Combat . | . . . . . . . . . . . . . Robot Hacks Applied 2 | . . . . . . . . . . . . 2 find_chute 2 | . . . . . . . . . . . . 2 Relay Couplers Released 1 | . . . . . 1 . . . . . . . Machine Destruction 1 | . . . . . 1 . . . . . . . Fabnet Peak Effective % . | . . . . . . . . . . . . . Robots Rewired . | . . . . . . . . . . . . . Allies Hacked . | . . . . . . . . . . . . . Hacks Repelled . | . . . . . . . . . . . . . Allies | -11 -10 -10 -9 -9 -8 -8 -7 -7 -7 -7 -6 -6 -------- Run | Yrd Mat Min Mat Min Mat Sto Fac Low Low Dat Pro Fac Total Allies 14 | . . . . 2 . 9 3 . . . . . Largest Group 9 | . . . . 2 2 9 3 2 2 1 . . Highest-Rated Group 157 | . . . . 43 43 157 93 57 57 31 . . Highest-Rated Ally 31 | . . . . 31 31 29 31 31 31 31 . . Total Orders 1 | . . . . . . 1 . . . . . . STAY 1 | . . . . . . 1 . . . . . . Ally Attacks 64 | . . . . 10 13 13 8 6 11 3 . . Total Damage 698 | . . . . 99 117 160 105 84 105 28 . . Kills 6 | . . . . 1 1 . 1 1 2 . . . Allies Corrupted . | . . . . . . . . . . . . . Allies Melted . | . . . . . . . . . . . . . Intel | -11 -10 -10 -9 -9 -8 -8 -7 -7 -7 -7 -6 -6 ------- Run | Yrd Mat Min Mat Min Mat Sto Fac Low Low Dat Pro Fac Robot Analysis Total 33 | . 3 . 6 . 2 4 17 . . . . 1 Derelict Logs Recovered 11 | . . 1 . 3 . . . 2 3 . 2 . Drone Launches . | . . . . . . . . . . . . . Drone Recoveries . | . . . . . . . . . . . . . Exploration | -11 -10 -10 -9 -9 -8 -8 -7 -7 -7 -7 -6 -6 ------------- Run | Yrd Mat Min Mat Min Mat Sto Fac Low Low Dat Pro Fac Turns Passed 25959 | 4004 3286 1549 4489 235 3183 3147 3527 423 413 104 369 1230 Spaces Moved 24445 | 67 2398 667 2996 423 3397 2080 6552 993 1066 107 1045 2654 Core 45 | 1 12 1 31 . . . . . . . . . Treads . | . . . . . . . . . . . . . Legs . | . . . . . . . . . . . . . Wheels 5651 | 66 2386 666 2533 . . . . . . . . . Hover . | . . . . . . . . . . . . . Flight 18749 | . . . 432 423 3397 2080 6552 993 1066 107 1045 2654 Fastest Speed 29 | 50 50 80 34 34 29 29 29 29 29 29 29 29 Average Speed 41 | 79 79 80 73 34 29 29 29 29 29 29 29 29 Slowest Speed 110 | 80 100 100 110 34 34 29 29 29 29 29 29 29 Overloaded Moves . | . . . . . . . . . . . . . Propulsion Burnouts . | . . . . . . . . . . . . . Robots Hopped 249 | . . . 3 5 50 57 98 . 2 1 . 33 Cave-ins Triggered . | . . . . . . . . . . . . . Exploration Rate (%) 86 | 6 99 98 100 99 99 98 91 98 99 77 99 66 Regions Visited 12 Branch Regions 7 Pre-discovered Areas 21 | . 2 . 2 3 2 2 4 1 1 1 . 3 Known Exits Taken 8 | . 1 1 1 1 1 1 1 1 . . . . Unknown Exits Taken 4 | 1 . . . . . . . . 1 1 1 . Scrap Searched 23 | . . 1 . 1 . . . 13 5 . 3 . Spaces Dug 13 | . 7 . 1 . 5 . . . . . . . Terrain Destroyed 851 | . 70 23 307 4 216 31 160 . . . . 40 Melee 13 | . 7 . 1 . 5 . . . . . . . Projectile 9 | . . . . 1 8 . . . . . . . AOE 829 | . 63 23 306 3 203 31 160 . . . . 40 Terrain Rammed . | . . . . . . . . . . . . . Walls Destroyed . | . . . . . . . . . . . . . Machines Disabled . | . . . . . . . . . . . . . Actions | -11 -10 -10 -9 -9 -8 -8 -7 -7 -7 -7 -6 -6 --------- Run | Yrd Mat Min Mat Min Mat Sto Fac Low Low Dat Pro Fac Total 38220 | 4010 3453 1558 4996 488 5186 4344 7765 1118 1146 166 1095 2895 Wait 11623 | 3936 783 806 1702 50 1473 2023 621 103 41 2 . 83 Move 23954 | 66 2397 666 2989 412 3298 1971 6363 992 1061 104 1044 2591 Hop 230 | . . . 3 5 48 51 90 . 2 1 . 30 Pick Up 53 | . . . 5 . 5 2 23 . . 6 3 9 Fast Attach 93 | 6 28 4 20 2 9 2 16 . 1 1 . 4 Attach 12 | . . . 2 . . . 6 . . 1 1 2 Detach 17 | . 1 . 3 . 1 1 7 . . 1 . 3 Swap 149 | . 4 4 20 2 21 18 46 . . 9 8 17 Drop 142 | . 27 3 25 1 19 8 38 . . 6 3 12 Fire 1439 | 2 155 55 173 14 242 191 394 16 39 20 24 114 Melee 28 | . 9 1 2 . 13 . 2 . . . . 1 Ram . | . . . . . . . . . . . . . Kick . | . . . . . . . . . . . . . Crush . | . . . . . . . . . . . . . Escape Stasis 6 | . . . . . . . 6 . . . . . Rewire . | . . . . . . . . . . . . . Trap . | . . . . . . . . . . . . . Miscellaneous 474 | . 49 19 52 2 57 77 153 7 2 15 12 29 Route ------- -11/Scrapyard -10/Materials (discovered 5 exits: *Mat x3 / *Min / *Sub) -10/Mines (discovered 3 exits: *Mat x2 / [*Exi]) -9/Materials (discovered 4 exits: *Mat x3 / *Min) -9/Mines (discovered 2 exits: *Mat x2) -8/Materials (discovered 4 exits: *Fac x3 / *Sto) -8/Storage (discovered 2 exits: *Fac / [*Rec]) -7/Factory (discovered 5 exits: *Fac x3 / *Low x2) -7/Lower Caves (discovered 2 exits: *Low / *Dat) -7/Lower Caves (discovered 2 exits: *Fac / *Dat) -7/Data Miner -6/Proximity Caves -6/Factory (discovered 5 exits: *Fac x3 / *Low x2) History --------- Turn | Location | Event 1 | -11/Scrapyard | Upgraded with Weapon slot (x2) 11 | -11/Scrapyard | Discovered new exit (range 16) 4005 | -11/Scrapyard | Entered Materials 4006 | -10/Materials | Build established: Gunner 4167 | -10/Materials | Discovered new exit (range 15) 4288 | -10/Materials | Reached level 2 4324 | -10/Materials | Discovered new exit (range 6) 4437 | -10/Materials | Discovered new exit (range 16) 4589 | -10/Materials | Build established: Hacker-Gunner 4791 | -10/Materials | Discovered new exit (range 14) 5053 | -10/Materials | Reached level 3 5065 | -10/Materials | Discovered new exit (range 8) 5594 | -10/Materials | Reached level 4 5982 | -10/Materials | Central database locked down 6198 | -10/Materials | Reached level 5 6277 | -10/Materials | Upgraded with Utility slot (x1) 6610 | -10/Materials | Reached level 6 6633 | -10/Materials | Upgraded with Utility slot (x1) 7052 | -10/Materials | Identified exit to Subcaves 7062 | -10/Materials | Identified exit to Materials 7225 | -10/Materials | Identified exit to Mines 7291 | -10/Materials | Entered Mines 7336 | -10/Mines | Discovered exit to Materials (range 13) 7371 | -10/Mines | Assembled infested the area 7371 | -10/Mines | Deemed a non-threat by the Exiles lab entrance 7371 | -10/Mines | Discovered new exit (range 5) 7508 | -10/Mines | Destroyed 8 combat bots 7589 | -10/Mines | Core integrity fell below 50% 7681 | -10/Mines | Discovered exit to Materials (range 12) 7732 | -10/Mines | Met a Derelict who couldn't figure out how to use a Trap Extractor 7758 | -10/Mines | Learned Materials garrison access intel 7866 | -10/Mines | Found a hidden stash of uninstalled traps 7918 | -10/Mines | Reached level 7 8028 | -10/Mines | Assisted by bots powering up and referring to "LRC-V3" 8840 | -10/Mines | Entered Materials 8842 | -9/Materials | Reached level 8 9222 | -9/Materials | Discovered new exit (range 10) 9307 | -9/Materials | Identified exit to Materials 9307 | -9/Materials | Identified exit to Mines 9334 | -9/Materials | Reached level 9 9427 | -9/Materials | Upgraded with Weapon slot (x1) 10035 | -9/Materials | Reached level 10 10058 | -9/Materials | Upgraded with Utility slot (x1) 10346 | -9/Materials | Build established: Hacker-Tank 11791 | -9/Materials | Upgraded with Propulsion slot (x1) 12040 | -9/Materials | First assault squad dispatched 12113 | -9/Materials | Reached level 11 12776 | -9/Materials | Sterilization system engaged 12776 | -9/Materials | Non-combat units ordered to evacuate 12876 | -9/Materials | Combat units ordered to evacuate 13076 | -9/Materials | Ambient heat levels rising (+10) 13226 | -9/Materials | Ambient heat levels rising (+10) 13329 | -9/Materials | Entered Mines 13342 | -9/Mines | Learned location of Storage (-8) 13361 | -9/Mines | A weapon hastily lodged in a ceiling crevice suddenly fell to the ground 13415 | -9/Mines | Discovered exit to Materials (range 6) 13419 | -9/Mines | Learned 8 Materials zone layouts 13433 | -9/Mines | Learned location of Zion (-6) 13454 | -9/Mines | Joined a pair of Derelicts in attacking an 0b10 outpost 13463 | -9/Mines | Upgraded with Utility slot (x1) 13510 | -9/Mines | Discovered exit to Materials (range 6) 13564 | -9/Mines | Entered Materials 13564 | -8/Materials | Accompanied by 2 allies 13565 | -8/Materials | Identified exit to Storage 13565 | -8/Materials | Identified exit to Factory 13566 | -8/Materials | Loaded intel: 1 garrison access location 13566 | -8/Materials | Reached level 12 13569 | -8/Materials | Led the pair of lost Derelicts to an unsafe place 13573 | -8/Materials | Upgraded with Utility slot (x1) 13634 | -8/Materials | Central database locked down 13799 | -8/Materials | Reached level 13 13872 | -8/Materials | Upgraded with Propulsion slot (x1) 13884 | -8/Materials | Destroyed 7 combat bots 13942 | -8/Materials | Build established: Hacker-Sprinter 13962 | -8/Materials | Discovered exit to Factory (range 7) 13964 | -8/Materials | First assault squad dispatched 13965 | -8/Materials | Destroyed 7 combat bots 14131 | -8/Materials | Destroyed 14 combat bots 14203 | -8/Materials | Reached level 14 14293 | -8/Materials | Identified exit to Garrison 14432 | -8/Materials | Discovered exit to Factory (range 6) 15518 | -8/Materials | Sterilization system engaged 15518 | -8/Materials | Non-combat units ordered to evacuate 15558 | -8/Materials | Destroyed 7 combat bots 15618 | -8/Materials | Combat units ordered to evacuate 15644 | -8/Materials | Reached level 15 15646 | -8/Materials | Upgraded with Utility slot (x1) 15726 | -8/Materials | Destroyed 28 combat bots 15818 | -8/Materials | Ambient heat levels rising (+10) 15968 | -8/Materials | Ambient heat levels rising (+10) 16118 | -8/Materials | Ambient heat levels rising (+10) 16248 | -8/Materials | Build established: Hacker-Tank 16268 | -8/Materials | Ambient heat levels rising (+10) 16418 | -8/Materials | Ambient heat levels rising (+10) 16568 | -8/Materials | Ambient heat levels rising (+10) 16718 | -8/Materials | Ambient heat levels rising (+10) 16747 | -8/Materials | Entered Storage 16965 | -8/Storage | Discovered exit to Factory (range 16) 16988 | -8/Storage | Destroyed 10 combat bots 17006 | -8/Storage | Used back door to open Recycling access 17006 | -8/Storage | Discovered new exit (range 5) 17154 | -8/Storage | Assisted by bots powering up and referring to "LRC-V3" 17200 | -8/Storage | Build established: Wizard-Sprinter 17369 | -8/Storage | Found Prototype Protection 17369 | -8/Storage | Identified Lgt. Regenerative Plating 17547 | -8/Storage | First assault squad dispatched 17564 | -8/Storage | Reached level 16 17589 | -8/Storage | Core integrity fell below 50% 17622 | -8/Storage | Destroyed 9 combat bots 18393 | -8/Storage | Destroyed 7 combat bots 18479 | -8/Storage | High security lockdown imminent 18490 | -8/Storage | Lost 5 allies 18510 | -8/Storage | Sterilization system engaged 18510 | -8/Storage | Non-combat units ordered to evacuate 18610 | -8/Storage | Combat units ordered to evacuate 18810 | -8/Storage | Ambient heat levels rising (+10) 18960 | -8/Storage | Ambient heat levels rising (+10) 19110 | -8/Storage | Ambient heat levels rising (+10) 19260 | -8/Storage | Ambient heat levels rising (+10) 19410 | -8/Storage | Ambient heat levels rising (+10) 19560 | -8/Storage | Ambient heat levels rising (+10) 19710 | -8/Storage | Ambient heat levels rising (+10) 19860 | -8/Storage | Ambient heat levels rising (+10) 19894 | -8/Storage | Entered Factory 19919 | -7/Factory | Discovered new exit (range 11) 19936 | -7/Factory | Discovered new exit (range 12) 20067 | -7/Factory | Garrison activated, responded to threat 20080 | -7/Factory | Reached level 17 20088 | -7/Factory | Discovered new exit (range 12) 20131 | -7/Factory | Destroyed 7 combat bots 20294 | -7/Factory | First assault squad dispatched 20360 | -7/Factory | Identified exit to Lower Caves 20493 | -7/Factory | Garrison activated, responded to threat 20667 | -7/Factory | Reached level 18 20772 | -7/Factory | Destroyed 7 combat bots 20778 | -7/Factory | Cargo convoy interrupted 20859 | -7/Factory | Core integrity fell below 50% 20904 | -7/Factory | Found Prototype Launcher 20904 | -7/Factory | Identified Mni. Smartbomb Launcher 21316 | -7/Factory | Discovered new exit (range 18) 21413 | -7/Factory | Discovered new exit (range 10) 21790 | -7/Factory | Fabricated Enh. Autogun (x1) 21867 | -7/Factory | Fabricated Imp. Weapon Cycler (x2) 21973 | -7/Factory | Fabricated Imp. Salvage Targeting Computer? 21997 | -7/Factory | Fabricated Adv. Shield Generator? 22010 | -7/Factory | Destroyed 10 combat bots 22154 | -7/Factory | High security lockdown imminent 22234 | -7/Factory | High security lockdown engaged 22264 | -7/Factory | Reached level 19 22339 | -7/Factory | Build established: Hacker-Sprinter 22480 | -7/Factory | Destroyed 7 combat bots 22638 | -7/Factory | Destroyed 28 combat bots 22649 | -7/Factory | Sterilization system engaged 22649 | -7/Factory | Non-combat units ordered to evacuate 22689 | -7/Factory | Destroyed 11 combat bots 22732 | -7/Factory | Allied Derelicts emerged from ambush trap array 22749 | -7/Factory | Combat units ordered to evacuate 22949 | -7/Factory | Ambient heat levels rising (+10) 23099 | -7/Factory | Ambient heat levels rising (+10) 23249 | -7/Factory | Ambient heat levels rising (+10) 23399 | -7/Factory | Ambient heat levels rising (+10) 23421 | -7/Factory | Entered Lower Caves 23421 | -7/Lower Caves | Accompanied by 2 allies 23517 | -7/Lower Caves | A Derelict revealed a hidden shortcut to meet someone special 23550 | -7/Lower Caves | Identified exit to Lower Caves 23636 | -7/Lower Caves | Attracted the attention of an 0b10 outpost 23668 | -7/Lower Caves | Destroyed 7 combat bots 23844 | -7/Lower Caves | Entered another Lower Caves area 23844 | -7/Lower Caves | Accompanied by 2 allies 23853 | -7/Lower Caves | Attracted the attention of an 0b10 outpost 23865 | -7/Lower Caves | Discovered new exit (range 10) 23896 | -7/Lower Caves | Destroyed 8 combat bots 23991 | -7/Lower Caves | Attacked by a faux Warlord 24034 | -7/Lower Caves | Destroyed 9 combat bots 24070 | -7/Lower Caves | Reached level 20 24074 | -7/Lower Caves | Upgraded with Utility slot (x1) 24079 | -7/Lower Caves | Learned Factory garrison access intel 24165 | -7/Lower Caves | Discovered new exit (range 14) 24257 | -7/Lower Caves | Entered Data Miner 24257 | -7/Data Miner | Accompanied by 1 ally 24257 | -7/Data Miner | Discovered new exit (range 6) 24268 | -7/Data Miner | Met Data Miner 24273 | -7/Data Miner | Learned location of Section 7 (-2) 24273 | -7/Data Miner | Acquired the access code to Warlord's prototype stash 24278 | -7/Data Miner | Received God Mode back door access code from Data Miner 24282 | -7/Data Miner | Data Conduit disabled 24338 | -7/Data Miner | Found Prototype Device 24338 | -7/Data Miner | Identified Exp. Thermal Shield 24361 | -7/Data Miner | Entered Proximity Caves 24364 | -6/Proximity Caves | Learned 12 Factory zone layouts 24444 | -6/Proximity Caves | Attracted the attention of an 0b10 checkpoint 24467 | -6/Proximity Caves | Spotted B-75 Beast 24476 | -6/Proximity Caves | Destroyed B-75 Beast 24548 | -6/Proximity Caves | Learned location of 1 exit from Factory 24569 | -6/Proximity Caves | Discovered new exit (range 12) 24730 | -6/Proximity Caves | Entered Factory 24731 | -6/Factory | Identified exit to Lower Caves 24732 | -6/Factory | Identified exit to Factory 24733 | -6/Factory | Loaded intel: 4 garrison access locations 24740 | -6/Factory | Discovered exit to Factory (range 12) 24884 | -6/Factory | Reached level 21 24886 | -6/Factory | Upgraded with Utility slot (x1) 24970 | -6/Factory | Discovered exit to Lower Caves (range 8) 25442 | -6/Factory | Spotted B-75 Beast 25469 | -6/Factory | Destroyed B-75 Beast 25575 | -6/Factory | Build established: Wizard-Sprinter 25705 | -6/Factory | Fabricated Imp. Hacking Suite (x1) 25823 | -6/Factory | Cargo convoy interrupted 25856 | -6/Factory | Core integrity fell below 50% 25874 | -6/Factory | Core integrity fell below 20% 25895 | -6/Factory | Reached level 22 25960 | -6/Factory | Destroyed self via exploding Fusion Modulator Last Messages --------------- 25932_ Upgraded: Core Integrity (+50) 25934_ X-72 Disruptor misfires. 25938_ D3 GABK79RBJ>%W5Z4H9Y TEO 25939_ X-72 Disruptor system terminally corrupted. 25939_ Insulated Plating fried. 25939_ Lrg. Battery fried. 25939_ Imp. Cooling System fried. 25939_ Mic. Fission Core fried. 25945_ U-05 Engineer builds a Door. 25960_ Fusion Modulator explodes. 25960_ Destroyed Shock Rifle. 25960_ Destroyed Mic. Nuclear Core. 25960_ Target Analyzer melted. 25960_ P-60 Hacker destroyed. 25960_ M-28 Smith destroyed. 25960_ Destroyed Com. Wheel. 25960_ Fusion Modulator explodes. 25960_ Nuclear Reactor explodes. [Achievement: Collector] [Achievement: Punisher] Map ----- +----------------------------------------------------+ | """" """" + + """ #???????# # """ ### | | """" """" #### #???????# / # | | """" """" #??# #???????# # """ # | | % #??# """""" #??????? # """ # | | #??# """""" +??????? + """ # | | #??# """""" #???????##### # | | ! #??# """""" #???????????# # | | ! #??# #???????????#+###### | | #####################+########??????##### #????# | | ???????????# T #????# | | ???????????# ##### ?????? T#####????# | | ???????????# #???? ???????????????????? | | ???????????# #???? ???????????????????? | | ???????????# #???? ???????????????????? | | ############ ###?# #??????????????????? | | / "" # ""#?# #??????????????????? | | % """ ""S # ""#?# #??????????????????? | | * """ "" # ""#?# #??????????????????? | | """ # ^ " G#?# #??????????????????? | | # " " ""#?# #??????????????????? | | """ """ # ""#?# #??????????????????? | | """ """ # "" ""#?# #??????????????????? | | """ """ # ###?# #??????????????????? | | # ###?# #??????????????????? | | """ """ # #;#;#+########???????????? | | """ """ # #@! #???????????? | | """ """ # ; R #???????????? | | # " ; #???????????? | | ############ ^